fUSD/lending_fUSD_20240519
["ID","MTS","AMOUNT","RATE_DAILY","PERIOD"]
[327460603,1716081045806,-500.0,0.00027671,2]
[327460604,1716081045816,-728.02,0.00027671,2]
[327460605,1716081045825,-500.0,0.00027671,2]
[327460606,1716081045834,-500.0,0.00027671,2]
[327460607,1716081045844,-500.0,0.00027671,2]
[327460608,1716081045853,-500.0,0.00027671,2]
[327460609,1716081045862,-500.0,0.00027671,2]
[327460610,1716081045872,-500.0,0.00027671,2]
[327460611,1716081045882,-500.0,0.00027671,2]
[327460612,1716081045892,-500.0,0.00027671,2]
[327460613,1716081045902,-500.0,0.00027671,2]
[327460614,1716081045912,-500.0,0.00027671,2]
[327460615,1716081045922,-506.56,0.00027671,2]
[327460616,1716081045932,-197.35,0.00027671,2]
[327460617,1716081045943,-500.0,0.00027671,2]
[327460618,1716081045953,-500.0,0.00027671,2]
[327460619,1716081045962,-500.0,0.00027671,2]
[327460620,1716081045972,-500.0,0.00027671,2]
[327460621,1716081045981,-500.0,0.00027671,2]
[327460622,1716081045991,-500.0,0.00027671,2]
[327460623,1716081046000,-781.54,0.00027671,2]
[327460624,1716081046010,-500.0,0.00027671,2]
[327460625,1716081046020,-500.0,0.00027671,2]
[327460626,1716081046030,-500.0,0.00027671,2]
[327460627,1716081046039,-500.0,0.00027671,2]
[327460628,1716081046048,-500.0,0.00027671,2]
[327460629,1716081046058,-500.0,0.00027671,2]
[327460630,1716081046067,-500.0,0.00027671,2]
[327460631,1716081046077,-500.0,0.00027671,2]
[327460632,1716081046086,-505.46220197,0.00027671,2]
[327460633,1716081046096,-500.0,0.00027671,2]
[327460634,1716081046106,-500.0,0.00027671,2]
[327460635,1716081046116,-500.0,0.00027671,2]
[327460636,1716081046125,-500.0,0.00027671,2]
[327460637,1716081046135,-500.0,0.00027671,2]
[327460638,1716081046144,-500.0,0.00027671,2]
[327460639,1716081046154,-500.0,0.00027671,2]
[327460640,1716081046164,-500.0,0.00027671,2]
[327460641,1716081046173,-500.0,0.00027671,2]
[327460642,1716081046182,-500.0,0.00027671,2]
[327460643,1716081046193,-500.0,0.00027671,2]
[327460644,1716081046203,-500.0,0.00027671,2]
[327460645,1716081046215,-500.0,0.00027671,2]
[327460646,1716081046224,-500.0,0.00027671,2]
[327460647,1716081046233,-500.0,0.00027671,2]
[327460648,1716081046244,-500.0,0.00027671,2]
[327460649,1716081046253,-934.5,0.00027671,2]
[327460650,1716081046262,-500.0,0.00027671,2]
[327460651,1716081046272,-500.0,0.00027671,2]
[327460652,1716081046281,-500.0,0.00027671,2]
[327460653,1716081046290,-850.51,0.00027671,2]
[327460654,1716081046299,-500.0,0.00027671,2]
[327460655,1716081046308,-566.84,0.00027671,2]
[327460656,1716081046318,-518.81,0.00027671,2]
[327460657,1716081046327,-500.0,0.00027671,2]
[327460658,1716081046336,-500.0,0.00027671,2]
[327460659,1716081046345,-509.76,0.00027671,2]
[327460660,1716081046354,-181.05,0.00027671,2]
[327460661,1716081046363,-500.0,0.00027671,2]
[327460662,1716081046372,-500.0,0.00027671,2]
[327460663,1716081046381,-500.0,0.00027671,2]
[327460664,1716081046391,-500.0,0.00027671,2]
[327460665,1716081046400,-500.0,0.00027671,2]
[327460666,1716081046409,-500.0,0.00027671,2]
[327460667,1716081046418,-500.0,0.00027671,2]
[327460668,1716081046427,-377.33,0.00027671,2]
[327460669,1716081046436,-500.0,0.00027671,2]
[327460670,1716081046446,-500.0,0.00027671,2]
[327460671,1716081046461,-236.04,0.00027671,2]
[327460672,1716081046471,-698.11,0.00027671,2]
[327460674,1716081046480,-500.0,0.00027671,2]
[327460676,1716081046491,-500.0,0.00027671,2]
[327460678,1716081046502,-500.0,0.00027671,2]
[327460680,1716081046512,-500.0,0.00027671,2]
[327460682,1716081046521,-500.0,0.00027671,2]
[327460683,1716081046532,-500.0,0.00027671,2]
[327460684,1716081046542,-500.0,0.00027671,2]
[327460685,1716081046551,-500.0,0.00027671,2]
[327460686,1716081046561,-562.85,0.00027671,2]
[327460687,1716081046573,-500.0,0.00027671,2]
[327460688,1716081046582,-500.0,0.00027671,2]
[327460689,1716081046592,-627.29,0.00027671,2]
[327460690,1716081046601,-500.0,0.00027671,2]
[327460691,1716081046610,-500.0,0.00027671,2]
[327460692,1716081046620,-500.0,0.00027671,2]
[327460693,1716081046630,-2612.87,0.00027671,2]
[327460694,1716081046639,-500.0,0.00027671,2]
[327460695,1716081046648,-500.0,0.00027671,2]
[327460696,1716081046657,-1140.35,0.00027671,2]
[327460697,1716081046666,-500.0,0.00027671,2]
[327460698,1716081046675,-500.0,0.00027671,2]
[327460699,1716081046685,-500.0,0.00027671,2]
[327460700,1716081046694,-500.0,0.00027671,2]
[327460701,1716081046704,-4111.17,0.00027671,2]
[327460702,1716081046713,-500.0,0.00027671,2]
[327460703,1716081046722,-1079.26,0.00027671,2]
[327460704,1716081046732,-500.0,0.00027671,2]
[327460705,1716081046742,-559.4,0.00027671,2]
[327460706,1716081046751,-806.74,0.00027671,2]
[327460707,1716081046760,-500.0,0.00027671,2]
[327460708,1716081046770,-500.0,0.00027671,2]
[327460709,1716081046779,-778.31,0.00027671,2]
[327460710,1716081046788,-1427.48,0.00027671,2]
[327460711,1716081046798,-3741.81,0.00027671,2]
[327460712,1716081046807,-500.0,0.00027671,2]
[327460713,1716081046816,-865.99,0.00027671,2]
[327460714,1716081046826,-500.0,0.00027671,2]
[327460715,1716081046835,-500.0,0.00027671,2]
[327460716,1716081046844,-500.0,0.00027671,2]
[327460717,1716081046853,-625.35,0.00027671,2]
[327460718,1716081046863,-299.90745312,0.00027671,2]
[327460719,1716081046872,-3176.13,0.00027671,2]
[327460720,1716081046881,-500.0,0.00027671,2]
[327460721,1716081046890,-500.0,0.00027671,2]
[327460722,1716081046899,-500.0,0.00027671,2]
[327460723,1716081046908,-500.0,0.00027671,2]
[327460724,1716081046917,-500.0,0.00027671,2]
[327460725,1716081046926,-500.0,0.00027671,2]
[327460726,1716081046935,-500.0,0.00027671,2]
[327460727,1716081046944,-2133.02,0.00027671,2]
[327460728,1716081046953,-507.09,0.00027671,2]
[327460729,1716081046963,-500.0,0.00027671,2]
[327460730,1716081046972,-1368.81,0.00027671,2]
[327460731,1716081046981,-700.51,0.00027671,2]
[327460732,1716081046990,-663.86,0.00027671,2]
[327460733,1716081046999,-3490.82,0.00027671,2]
[327460734,1716081047009,-632.57,0.00027671,2]
[327460735,1716081047018,-500.0,0.00027671,2]
[327460736,1716081047027,-500.0,0.00027671,2]
[327460737,1716081047037,-500.0,0.00027671,2]
[327460738,1716081047046,-500.0,0.00027671,2]
[327460739,1716081047055,-566.18,0.00027671,2]
[327460740,1716081047066,-500.0,0.00027671,2]
[327460741,1716081047075,-500.0,0.00027671,2]
[327460742,1716081047084,-500.0,0.00027671,2]
[327460743,1716081047093,-962.79,0.00027671,2]
[327460744,1716081047102,-346.06964117,0.00027671,2]
[327460745,1716081047111,-525.55,0.00027671,2]
[327460746,1716081047120,-500.0,0.00027671,2]
[327460747,1716081047130,-1041.93,0.00027671,2]
[327460748,1716081047139,-1436.82,0.00027671,2]
[327460749,1716081047148,-500.0,0.00027671,2]
[327460750,1716081047157,-500.0,0.00027671,2]
[327460751,1716081047166,-500.0,0.00027671,2]
[327460752,1716081047175,-1031.39,0.00027671,2]
[327460753,1716081047184,-500.0,0.00027671,2]
[327460754,1716081047193,-500.0,0.00027671,2]
[327460755,1716081047202,-650.1,0.00027671,2]
[327460756,1716081047211,-500.0,0.00027671,2]
[327460757,1716081047221,-500.0,0.00027671,2]
[327460758,1716081047230,-7266.59,0.00027671,2]
[327460759,1716081047241,-565.9,0.00027671,2]
[327460760,1716081047299,-500.0,0.00027671,2]
[327460761,1716081047309,-500.0,0.00027671,2]
[327460762,1716081047318,-1326.33,0.00027671,2]
[327460763,1716081047327,-1158.93,0.00027671,2]
[327460764,1716081047336,-500.0,0.00027671,2]
[327460765,1716081047347,-500.0,0.00027671,2]
[327460766,1716081047356,-971.44,0.00027671,2]
[327460767,1716081047367,-1579.23,0.00027671,2]
[327460768,1716081047378,-863.87,0.00027671,2]
[327460769,1716081047388,-500.0,0.00027671,2]
[327460770,1716081047398,-500.0,0.00027671,2]
[327460771,1716081047407,-500.0,0.00027671,2]
[327460772,1716081047417,-500.0,0.00027671,2]
[327460773,1716081047427,-500.0,0.00027671,2]
[327460774,1716081047435,-1593.95,0.00027671,2]
[327460775,1716081047445,-500.0,0.00027671,2]
[327460776,1716081047459,-777.25,0.00027671,2]
[327460777,1716081047469,-500.0,0.00027671,2]
[327460778,1716081047478,-500.0,0.00027671,2]
[327460779,1716081047487,-500.0,0.00027671,2]
[327460780,1716081047498,-1622.1,0.00027671,2]
[327460781,1716081047508,-614.84,0.00027671,2]
[327460782,1716081047516,-792.6,0.00027671,2]
[327460783,1716081047525,-500.0,0.00027671,2]
[327460784,1716081047534,-500.0,0.00027671,2]
[327460785,1716081047545,-596.35,0.00027671,2]
[327460786,1716081047555,-500.0,0.00027671,2]
[327460787,1716081047565,-788.23,0.00027671,2]
[327460788,1716081047574,-500.0,0.00027671,2]
[327460789,1716081047584,-500.0,0.00027671,2]
[327460790,1716081047594,-500.0,0.00027671,2]
[327460791,1716081047603,-1897.69,0.00027671,2]
[327460792,1716081047612,-702.23,0.00027671,2]
[327460793,1716081047622,-500.0,0.00027671,2]
[327460794,1716081047632,-500.0,0.00027671,2]
[327460795,1716081047641,-785.93,0.00027671,2]
[327460796,1716081047650,-500.0,0.00027671,2]
[327460797,1716081047660,-716.55,0.00027671,2]
[327460798,1716081047669,-500.0,0.00027671,2]
[327460799,1716081047678,-1297.96,0.00027671,2]
[327460800,1716081047688,-848.88,0.00027671,2]
[327460801,1716081047697,-500.0,0.00027671,2]
[327460802,1716081047707,-500.0,0.00027671,2]
[327460803,1716081047716,-1004.4,0.00027671,2]
[327460804,1716081047726,-1062.44,0.00027671,2]
[327460805,1716081047735,-503.18,0.00027671,2]
[327460806,1716081047744,-500.0,0.00027671,2]
[327460807,1716081047754,-500.0,0.00027671,2]
[327460808,1716081047763,-500.0,0.00027671,2]
[327460809,1716081047772,-500.0,0.00027671,2]
[327460810,1716081047782,-500.0,0.00027671,2]
[327460811,1716081047791,-512.74594594,0.00027671,2]
[327460812,1716081047800,-500.0,0.00027671,2]
[327460813,1716081047810,-1266.93,0.00027671,2]
[327460814,1716081047819,-500.0,0.00027671,2]
[327460815,1716081047828,-500.0,0.00027671,2]
[327460816,1716081047838,-500.0,0.00027671,2]
[327460817,1716081047847,-500.0,0.00027671,2]
[327460818,1716081047856,-500.0,0.00027671,2]
[327460819,1716081047865,-500.0,0.00027671,2]
[327460820,1716081047875,-500.0,0.00027671,2]
[327460821,1716081047884,-981.99,0.00027671,2]
[327460822,1716081047893,-500.0,0.00027671,2]
[327460823,1716081047902,-922.24,0.00027671,2]
[327460824,1716081047911,-511.50842713,0.00027671,2]
[327460825,1716081047920,-1945.34,0.00027671,2]
[327460826,1716081047929,-597.52,0.00027671,2]
[327460827,1716081047939,-1409.39,0.00027671,2]
[327460828,1716081047948,-500.0,0.00027671,2]
[327460829,1716081047957,-1533.71,0.00027671,2]
[327460830,1716081047967,-500.0,0.00027671,2]
[327460831,1716081047975,-500.0,0.00027671,2]
[327460832,1716081047984,-579.58,0.00027671,2]
[327460833,1716081047994,-1102.64,0.00027671,2]
[327460834,1716081048003,-500.0,0.00027671,2]
[327460835,1716081048012,-1101.22,0.00027671,2]
[327460836,1716081048023,-2191.41,0.00027671,2]
[327460837,1716081048032,-500.0,0.00027671,2]
[327460838,1716081048041,-500.0,0.00027671,2]
[327460839,1716081048051,-845.41,0.00027671,2]
[327460840,1716081048060,-500.0,0.00027671,2]
[327460841,1716081048069,-825.91,0.00027671,2]
[327460842,1716081048078,-628.37,0.00027671,2]
[327460843,1716081048087,-500.0,0.00027671,2]
[327460844,1716081048096,-500.0,0.00027671,2]
[327460845,1716081048105,-1035.16,0.00027671,2]
[327460846,1716081048114,-500.0,0.00027671,2]
[327460847,1716081048123,-500.0,0.00027671,2]
[327460848,1716081048132,-500.0,0.00027671,2]
[327460849,1716081048142,-1370.1,0.00027671,2]
[327460850,1716081048151,-500.0,0.00027671,2]
[327460851,1716081048161,-1657.77,0.00027671,2]
[327460852,1716081048170,-792.32,0.00027671,2]
[327460853,1716081048180,-473.51292628,0.00027671,2]
[327460854,1716081048191,-711.66,0.00027671,2]
[327460855,1716081048199,-500.0,0.00027671,2]
[327460856,1716081048210,-500.0,0.00027671,2]
[327460857,1716081048221,-500.0,0.00027671,2]
[327460858,1716081048232,-4442.48,0.00027671,2]
[327460859,1716081048242,-4338.6956981,0.00027671,2]
[327460860,1716081048775,-140.3743019,0.00027671,2]
[327460861,1716081048785,-500.0,0.00027671,2]
[327460862,1716081048794,-500.0,0.00027671,2]
[327460863,1716081048803,-332.9269013,0.00027671,2]
[327460864,1716081048812,-1002.68,0.00027671,2]
[327460865,1716081048820,-576.12,0.00027671,2]
[327460866,1716081048829,-2842.54490651,0.00027671,2]
[327460867,1716081390989,176.99,0.00025552,120]
[327460869,1716081892688,215.92,0.00024755,120]
[327460879,1716082232185,-155.0,0.00013972,2]
[327460881,1716082232195,-156.54,0.00013973,2]
[327460882,1716082232205,-338.875736,0.00014,2]
[327460883,1716082232216,-3602.87161701,0.00017169,2]
[327460885,1716082232366,-1397.12838299,0.00017169,2]
[327460886,1716082232376,-1767.43737065,0.0001717,2]
[327460887,1716082232390,-699.51088635,0.0001717,2]
[327460888,1716082232400,-150.0,0.00017259,2]
[327460889,1716082232410,-150.0,0.00017259,2]
[327460890,1716082232421,-849.10487364,0.00018801,2]
[327460891,1716082232434,-1473.98957273,0.00018801,2]
[327460892,1716082232444,-150.99,0.00018801,2]
[327460893,1716082232455,-150.99,0.00018801,2]
[327460894,1716082232465,-150.99,0.00018801,2]
[327460895,1716082232476,-194.41806479,0.00019588,2]
[327460896,1716082232488,-305.57193521,0.00019588,2]
[327460897,1716082232499,-442.32,0.00022782,2]
[327460898,1716082232510,-390.43,0.00024683,2]
[327460899,1716082232520,-56.53095973,0.00024697,2]
[327460900,1716082232532,-443.46904027,0.00024697,2]
[327460901,1716082232543,-3527.60113613,0.00024738,2]
[327460902,1716082232557,-65.36886387,0.00024738,2]
[327460903,1716082232567,-889.44014133,0.00024755,2]
[327460904,1716082232580,-237.32144221,0.00024755,2]
[327460905,1716082232591,-718.4720498,0.00024755,7]
[327460906,1716082232602,-1190.2,0.00024755,2]
[327460907,1716082232612,-601.8,0.00024931,2]
[327460908,1716082232623,-162.83,0.00025006,2]
[327460909,1716082232633,-442.32,0.00025046,2]
[327460910,1716082232644,-319.79,0.00025061,2]
[327460911,1716082232655,-185.04,0.00025103,2]
[327460912,1716082232666,-250.0,0.00025145,2]
[327460913,1716082232677,-250.0,0.00025175,2]
[327460914,1716082232688,-1699.0,0.00025188,2]
[327460915,1716082232698,-680.21,0.00025552,2]
[327460916,1716082232710,-162.83,0.00026309,2]
[327460917,1716082232720,-294.04961797,0.00026546,7]
[327460918,1716082232730,-409.98762839,0.00026679,2]
[327460920,1716082232743,-189.94237161,0.00026679,2]
[327460921,1716082232753,-257.2237607,0.00026686,2]
[327460922,1716082232766,-266.27999998,0.00026686,2]
[327460923,1716082232780,-76.42623932,0.00026686,2]
[327460924,1716082232791,-599.93,0.00026693,2]
[327460925,1716082232801,-76.08964348,0.000267,2]
[327460926,1716082232826,-523.84035652,0.000267,2]
[327460927,1716082232837,-599.93,0.00026707,2]
[327460928,1716082232848,-326.5136418,0.00026714,2]
[327460929,1716082232860,-273.4163582,0.00026714,2]
[327460930,1716082232870,-94.25693421,0.00026721,2]
[327460931,1716082232895,-505.67306579,0.00026721,2]
[327460932,1716082232906,-191.47260353,0.00026728,2]
[327460934,1716082232918,-408.45739647,0.00026728,2]
[327460936,1716082232930,-599.93,0.00026735,2]
[327460938,1716082232942,-599.93,0.00026743,2]
[327460940,1716082232952,-599.93,0.0002675,2]
[327460943,1716082232965,-599.93,0.00026757,2]
[327460945,1716082232975,-599.93,0.00026764,2]
[327460946,1716082232985,-599.93,0.00026771,2]
[327460947,1716082232995,-599.93,0.00026778,2]
[327460948,1716082233005,-432.0211137,0.00026785,2]
[327460949,1716082233019,-167.9088863,0.00026785,2]
[327460950,1716082233029,-599.93,0.00026792,2]
[327460951,1716082233039,-599.93,0.00026799,2]
[327460952,1716082233050,-628.0,0.000268,2]
[327460953,1716082233060,-599.93,0.00026806,2]
[327460954,1716082233071,-599.93,0.00026813,2]
[327460955,1716082233082,-168.61,0.00027162,2]
[327460956,1716082233092,-2884.4339,0.00027197,2]
[327460957,1716082233102,-150.0,0.00027197,2]
[327460958,1716082233113,-3645.6679116,0.00027197,2]
[327460959,1716082233123,-153.039804,0.00027197,2]
[327460960,1716082233134,-500.0,0.00027297,2]
[327460961,1716082233143,-2889.3223,0.00027297,2]
[327460962,1716082233153,-5032.0473,0.00027297,2]
[327460963,1716082233164,-44161.43629905,0.00027297,2]
[327460964,1716082233176,-36089.45179385,0.00027297,2]
[327460965,1716082233189,-316.35839417,0.00027297,2]
[327460967,1716082238342,-150.0,0.00024633,2]
[327460970,1716082238353,-282.5652,0.00027197,2]
[327460972,1716082238364,-4608.17144175,0.00027297,2]
[327460982,1716082238520,-3023.94694917,0.00027297,2]
[327460983,1716082238789,-993.75037558,0.00027297,2]
[327460984,1716082238802,-1674.40465729,0.00027297,2]
[327460985,1716082238814,-392.8545,0.00027297,2]
[327460986,1716082238842,-598.12889179,0.00027297,2]
[327460987,1716082238854,-3755.23188942,0.00027297,2]
[327460988,1716082238866,-1025.72594383,0.00027297,2]
[327460989,1716082238903,-28412.8275641,0.00027297,2]
[327460990,1716082238913,-1685.9935,0.00027297,2]
[327460991,1716082238923,-7500.0,0.00027297,2]
[327460992,1716082238934,-287.88244307,0.00027297,2]
[327460993,1716082238945,-442.32,0.0002731,2]
[327460994,1716082238955,-321.66441706,0.00027397,2]
[327460995,1716082238965,-500.0,0.00027397,2]
[327460996,1716082238976,-333.96838056,0.00027397,2]
[327460997,1716082238985,-500.0,0.00027397,2]
[327460998,1716082238994,-500.0,0.00027397,2]
[327460999,1716082239004,-500.0,0.00027397,2]
[327461000,1716082239013,-500.0,0.00027397,2]
[327461001,1716082239025,-500.0,0.00027397,2]
[327461002,1716082239034,-500.0,0.00027397,2]
[327461003,1716082239044,-500.0,0.00027397,2]
[327461004,1716082239053,-500.0,0.00027397,2]
[327461005,1716082239063,-500.0,0.00027397,2]
[327461006,1716082239072,-500.0,0.00027397,2]
[327461007,1716082239082,-500.0,0.00027397,2]
[327461008,1716082239092,-500.0,0.00027397,2]
[327461009,1716082239100,-500.0,0.00027397,2]
[327461010,1716082239110,-500.0,0.00027397,2]
[327461011,1716082239120,-500.0,0.00027397,2]
[327461012,1716082239129,-500.0,0.00027397,2]
[327461013,1716082239139,-500.0,0.00027397,2]
[327461014,1716082239149,-500.0,0.00027397,2]
[327461015,1716082239158,-500.0,0.00027397,2]
[327461016,1716082239168,-500.0,0.00027397,2]
[327461017,1716082239177,-500.0,0.00027397,2]
[327461018,1716082239187,-500.0,0.00027397,2]
[327461019,1716082239196,-500.0,0.00027397,2]
[327461020,1716082239207,-500.0,0.00027397,2]
[327461021,1716082239216,-500.0,0.00027397,2]
[327461022,1716082239225,-286.06301147,0.00027397,2]
[327461023,1716082239234,-500.0,0.00027397,2]
[327461024,1716082239243,-500.0,0.00027397,2]
[327461025,1716082239253,-500.0,0.00027397,2]
[327461026,1716082239262,-500.0,0.00027397,2]
[327461027,1716082239272,-500.0,0.00027397,2]
[327461028,1716082239282,-500.0,0.00027397,2]
[327461029,1716082239292,-756.44,0.00027397,2]
[327461030,1716082239302,-525.25,0.00027397,2]
[327461031,1716082239311,-500.0,0.00027397,2]
[327461032,1716082239320,-882.93,0.00027397,2]
[327461033,1716082239335,-500.0,0.00027397,2]
[327461034,1716082239344,-500.0,0.00027397,2]
[327461035,1716082239354,-500.0,0.00027397,2]
[327461036,1716082239364,-500.0,0.00027397,2]
[327461037,1716082239374,-500.0,0.00027397,2]
[327461038,1716082239384,-500.0,0.00027397,2]
[327461039,1716082239394,-1023.73,0.00027397,2]
[327461040,1716082239404,-500.0,0.00027397,2]
[327461041,1716082239414,-522.65,0.00027397,2]
[327461042,1716082239424,-543.0,0.00027397,2]
[327461043,1716082239434,-500.0,0.00027397,2]
[327461044,1716082239443,-773.0,0.00027397,2]
[327461045,1716082239456,-774.25,0.00027397,2]
[327461046,1716082239466,-500.0,0.00027397,2]
[327461047,1716082239476,-500.0,0.00027397,2]
[327461048,1716082239485,-500.0,0.00027397,2]
[327461049,1716082239495,-500.0,0.00027397,2]
[327461050,1716082239504,-500.0,0.00027397,2]
[327461051,1716082239514,-500.0,0.00027397,2]
[327461052,1716082239526,-174.05,0.00027397,2]
[327461053,1716082239535,-500.0,0.00027397,2]
[327461054,1716082239545,-500.0,0.00027397,2]
[327461055,1716082239555,-500.0,0.00027397,2]
[327461056,1716082239565,-500.0,0.00027397,2]
[327461057,1716082239574,-500.0,0.00027397,2]
[327461058,1716082239584,-500.0,0.00027397,2]
[327461059,1716082239594,-500.0,0.00027397,2]
[327461060,1716082239603,-500.0,0.00027397,2]
[327461061,1716082239613,-500.0,0.00027397,2]
[327461062,1716082239624,-578.08,0.00027397,2]
[327461063,1716082239634,-980.32,0.00027397,2]
[327461064,1716082239644,-500.0,0.00027397,2]
[327461065,1716082239654,-500.0,0.00027397,2]
[327461066,1716082239664,-667.35,0.00027397,2]
[327461067,1716082239674,-500.0,0.00027397,2]
[327461068,1716082239684,-500.0,0.00027397,2]
[327461069,1716082239694,-500.0,0.00027397,2]
[327461070,1716082239704,-500.0,0.00027397,2]
[327461071,1716082239714,-202.6,0.00027397,2]
[327461072,1716082239724,-500.0,0.00027397,2]
[327461073,1716082239733,-511.93073382,0.00027397,2]
[327461074,1716082239743,-500.0,0.00027397,2]
[327461075,1716082239753,-500.0,0.00027397,2]
[327461076,1716082239763,-500.0,0.00027397,2]
[327461077,1716082239773,-500.0,0.00027397,2]
[327461078,1716082239783,-500.0,0.00027397,2]
[327461079,1716082239793,-500.0,0.00027397,2]
[327461080,1716082239803,-500.0,0.00027397,2]
[327461081,1716082239813,-500.0,0.00027397,2]
[327461082,1716082239823,-500.0,0.00027397,2]
[327461083,1716082239833,-500.0,0.00027397,2]
[327461084,1716082239843,-856.62,0.00027397,2]
[327461085,1716082239853,-599.9,0.00027397,2]
[327461086,1716082239863,-779.63,0.00027397,2]
[327461087,1716082239873,-500.0,0.00027397,2]
[327461088,1716082239883,-500.0,0.00027397,2]
[327461089,1716082239892,-500.0,0.00027397,2]
[327461090,1716082239902,-500.0,0.00027397,2]
[327461091,1716082239912,-500.0,0.00027397,2]
[327461092,1716082239923,-500.0,0.00027397,2]
[327461093,1716082239935,-500.0,0.00027397,2]
[327461094,1716082239946,-639.93,0.00027397,2]
[327461095,1716082239956,-500.0,0.00027397,2]
[327461096,1716082239966,-500.0,0.00027397,2]
[327461097,1716082239976,-500.0,0.00027397,2]
[327461098,1716082239986,-1255.93,0.00027397,2]
[327461099,1716082239996,-713.46,0.00027397,2]
[327461100,1716082240007,-500.0,0.00027397,2]
[327461101,1716082240019,-500.0,0.00027397,2]
[327461102,1716082240028,-573.24,0.00027397,2]
[327461103,1716082240039,-500.0,0.00027397,2]
[327461104,1716082240049,-4072.27,0.00027397,2]
[327461105,1716082240059,-500.0,0.00027397,2]
[327461106,1716082240068,-3429.99,0.00027397,2]
[327461107,1716082240078,-500.0,0.00027397,2]
[327461108,1716082240088,-500.0,0.00027397,2]
[327461109,1716082240097,-14641.45,0.00027397,2]
[327461110,1716082240107,-500.0,0.00027397,2]
[327461111,1716082240118,-989.32,0.00027397,2]
[327461112,1716082240128,-500.0,0.00027397,2]
[327461113,1716082240138,-500.0,0.00027397,2]
[327461114,1716082240148,-608.54,0.00027397,2]
[327461115,1716082240158,-500.0,0.00027397,2]
[327461116,1716082240168,-500.0,0.00027397,2]
[327461118,1716082240178,-1603.85,0.00027397,2]
[327461120,1716082240187,-500.0,0.00027397,2]
[327461122,1716082240196,-500.0,0.00027397,2]
[327461123,1716082240206,-500.0,0.00027397,2]
[327461124,1716082240216,-500.0,0.00027397,2]
[327461125,1716082240226,-500.0,0.00027397,2]
[327461126,1716082240236,-500.0,0.00027397,2]
[327461127,1716082240246,-500.0,0.00027397,2]
[327461128,1716082240255,-622.79,0.00027397,2]
[327461129,1716082240265,-2711.99,0.00027397,2]
[327461130,1716082240276,-3199.92,0.00027397,2]
[327461131,1716082240286,-500.0,0.00027397,2]
[327461132,1716082240296,-579.86,0.00027397,2]
[327461133,1716082240305,-500.0,0.00027397,2]
[327461134,1716082240315,-518.99,0.00027397,2]
[327461135,1716082240324,-500.0,0.00027397,2]
[327461136,1716082240334,-500.0,0.00027397,2]
[327461137,1716082240344,-296.54999511,0.00027397,2]
[327461138,1716082240354,-2911.46,0.00027397,2]
[327461139,1716082240364,-500.0,0.00027397,2]
[327461140,1716082240373,-500.0,0.00027397,2]
[327461141,1716082240383,-500.0,0.00027397,2]
[327461142,1716082240393,-595.93,0.00027397,2]
[327461143,1716082240402,-1062.35,0.00027397,2]